{"text_format":"3","workbook":"xlsx","n_sheets":3,"sheets":["供应商信息收集表","设备部分","服务部分"],"not_rendered":{"defined_names":1},"read":"whole","date_system":"1900"}

{"sheet":"供应商信息收集表","index":0,"n_rows":31,"n_cols":19,"rows_kept":31,"merged":[[4,1,5,1],[4,2,4,4],[4,5,4,14],[4,15,4,16],[4,17,5,17],[4,18,5,18]]}
[]
[null,"供应商信息收集台帐",null,"请填写下方表格信息后点击项目要求继续填写"]
[null," Supplier management account"]
[]
[null,"序号","项目概况",null,null,"供应商基础信息",{"$nulls":9},"项目报价",null,"合计报价金额","备注"]
[null,null,"采购项目名称","采购项目编号","项目要求\n（可另附子表）","单位名称","联系人","联系电话","邮箱","注册资本金","纳税人身份","成立年份","统一社会信用码","经营范围","资质情况","设备部分","服务部分"]
[null,{"$f":"IF(C7=\"\",\"\",ROW()-6)","v":1},"青洲五、七海上风电场网络通信保障服务项目","202511088106064","于本表格《设备部分》《服务部分》，请确认满足要求后，填写报价。",{"$nulls":10},{"$f":"设备部分!H10","v":{"v":0,"d":"￥0.00"}},{"$f":"服务部分!H7","v":{"v":0,"d":"￥0.00"}},{"$f":"P7+Q7","v":{"v":0,"d":"￥0.00"}}]
[]
[]
[]
[]
[]
[null,{"$f":"IF(C13=\"\",\"\",ROW()-6)","v":""}]
[null,""]
[null,""]
[null,""]
[null,""]
[null,""]
[null,""]
[null,""]
[null,""]
[null,""]
[null,""]
[null,""]
[null,""]
[null,""]
[null,""]
[null,""]
[null,""]
[null,""]
[null,""]

{"sheet":"设备部分","index":1,"n_rows":10,"n_cols":9,"rows_kept":10,"merged":[[9,0,9,6]]}
["序号","产品名称","产品型号","产品说明","总数量","单位","含税单价(元)","含税总价(元)","税率"]
[1,"运维跳板机",null,"1.1U主机超薄小机箱(替代X3250M6)\n2.至强E-2378G\n3.八核十六线程3.2G\n4.16G内存丨1TB硬盘丨300W",1,"台",null,{"$f":"E2*G2","v":{"v":0,"d":"0.00"}},{"v":0.13,"d":"13%"}]
[2,"下一代防火墙",null,"1.性能参数：\n(1)网络层吞吐量：20G，\n(2)应用层吞吐量：10G，\n(3)防病毒吞吐量：1.5G，\n(4)IPS吞吐量：1.5G，\n(5)全威胁吞吐量：1G，\n(6)并发连接数：300万，\n(7)HTTP新建连接数：9万，\n(8)SSL VPN推荐用户数（单独购买）：30，\n(9)SSL VPN最大用户数（单独购买）：80，\n(10)SSL VPN最大理论加密流量（单独购买）：250M，\n(11)IPSec VPN 最大接入数：1000，\n(12)IPSec  VPN吞吐量：700M。\n2.硬件参数：\n(1)规格：1U，\n(2)内存大小：8G，\n(3)硬盘容量：128G SSD，\n(4)电源：单电源，\n(5)接口：8千兆电口+2万兆光口SFP+。\n3.功能描述：\n(1)深信服下一代防火墙以保障用户核心资产为目标，提供L2-L7层各类威胁的检测和防护，是一款能够有效应对传统网络攻击和未知威胁攻击的网络安全产品。\n(2)AF-1000-FH2150B标准产品,每台含：\n1)1套* 深信服防火墙软件基础级；\n2)3套* 深信服云智订阅软件（AF8.0.7及以上版本适用）；\n3)2个* 光纤线-多模-LC-LC-5M；\n4)2个* 万兆多模-850-300m-双纤；\n5)3年* 维保服务（标准版）。",1,"台",null,{"$f":"E3*G3","v":{"v":0,"d":"0.00"}},{"v":0.13,"d":"13%"}]
[3,"安视交换机",null,"1.安视万兆交换机，12个万兆光口，12个千兆电口；\n2.交换容量：2.4Tbps/24Tbps，\n3.包转发率：780Mpps/1080Mpps；支持全端口线速转发；\n4.每台含：\n（1）1套* 安视交换机管理平台软件；\n（2）3年* 产品质保（标准版）。",1,"台",null,{"v":0,"d":"0.00"},{"v":0.13,"d":"13%"}]
[4,"超融合一体机",null,"1.硬件参数：\n（1）规格：2U，\n（2）CPU：2颗Intel Xeon Gold 6342 CPU@2.80GHZ（24C），\n（3）内存：16*64 GB DDR4 3200，\n（4）系统盘：2*240GB SATA SSD，\n（5）缓存盘：2个* 固态硬盘-1.92T-SSD-新（混合型），\n（6）数据盘：8个* 机械硬盘8T，\n（7）标配盘位数：12，\n（8）电源：白金，冗余电源，\n（9）接口：4千兆电口+2万兆光口。\n（10）每台含：\n1）2套* 深信服计算服务器虚拟化软件V6.0；\n2）2套* 深信服网络虚拟化软件V6.0；\n3）2套* 深信服虚拟存储软件V3.0；\n4）2套* 深信服云计算管理软件V6.0  高级版；\n5）2个* 光纤线-多模-LC-LC-5M；\n6）4个* 万兆多模-850-300m-双纤；\n7）3年* SDDC基础运维服务（一体机版）。",2,"台",null,{"v":0,"d":"0.00"},{"v":0.13,"d":"13%"}]
[5,"VHF",null,"1.频率范围：136-174MHz；\n2.信道间隔：12.5kHz/25KHz；\n3.工作电压：AC100-240V @50/60Hz DC13.6V±15%；\n4.频率稳定度： ±0.5ppm；\n5.调制方式：4FSK；\n6.输出功率：1W - 50W（连续可调）；\n7.尺寸：标准19英寸1U高度机箱；\n8.前面板具备彩色LCD显示屏，分辨率不低于320*240，4行中文显示，可直接查询显示设备状态；\n9.支持DMR数字和模拟两种模式，可以配置为模拟、数字或混合模式。其中船岸通讯使用模拟模式、内部通讯使用数字模式。其中数字模式符合DMR标准下12.5KHZ实现双时隙语音通话；\n10.内置IP互联模块，不需要外置硬件设备即可具备IP互联功能，并能够支持最多64个的收发信机进行IP互联组网；\n11.支持IP互联模式下的基站分群功能，IP网络下的收发信机根据不同的呼叫权限，组成不同的呼叫路由表，从而实现基站的分群呼叫功能；\n12.▲支持通过对应管理软件，可远程检测并上报设备的电压、电流、功率、驻波比等关键指标，异常时上报告警信息，并采取相应的降功率、停止发射等保护措施；（提供经国家认可的检测机构出具的检验报告复印件）\n13.▲具有高可靠性，能够长期在河岸、海边等潮湿环境中使用。（提供经国家认可的检测机构出具的检验报告复印件，检测内容包含有温度和盐雾，其中盐雾试验周期不低于96小时）\n14.▲玻璃钢天线金属夹持部位采用316不锈钢，具有高可靠性，能够长期在河岸、海边等潮湿环境中使用。（提供经国家认可的检测机构出具的检验报告复印件，检测内容包含盐雾和316不锈钢材质，其中盐雾试验周期不低于72小时）\n15.▲VHF基站网管功能：支持显示所有VHF信道机、基站IP控制器等的状态和基本信息：如基站名称、ID、通话状态、功放温度、网络状态等基本状态信息；不同设备的类型可以分类选择和展示；（提供经国家认可的检测机构出具的检验报告复印件）\n16.▲系统具备广播呼叫功能，支持选择定时播报或即时播报，可以自定义选择播报的日期、星期、时间、间隔、播报次数，支持文字转语音或选择已有的语音文件；支持选择广播的基站，支持单选和多选；可在主界面和广播调度界面中显示播报的计划和实时播报内容；（提供经国家认可的检测机构出具的检验报告复印件）\n17.▲VHF调度系统软件通过国产信创兼容互认认证或适配认证，包括与国产操作系统适配认证、产品数据库和国产CPU兼容认证等（提供产品制造商与国产化操作系统、国产数据库和国产CPU数据库厂商互认的兼容性或适配认证证明材料）。",2,"项",null,{"v":0,"d":"0.00"},{"v":0.13,"d":"13%"}]
[6,"AIS",null,"1.频率范围：156.025MHz～162.025MHz；\n2.发送及接收频率：CH87/AIS1 (161.975 MHz)、CH88/AIS2 (162.025 MHz)；\n3.无线通信速率：9600bps；\n4.带宽：25kHz（默认），12.5kHz；\n5.发射功率：12.5W（默认）/2W；\n6.AIS接收通道数量：2；\n7.灵敏度：-110dBm ，PER≤20%；\n8.GNSS：支持GPS和北斗双星定位；\n9.GNSS定位精度：≤10m；\n10.GNSS授时误差：≤20ns；\n11.调制方式:GMSK/FM；\n12.数据格式:符合IEC61162-2标准；\n13.网口：2个100M网络端口，支持内置4G/5G模块；\n14.产品为标准2U机架式，尺寸（±10%）：\n420mmx353mmx87mm（长x宽x高）；\n15.屏幕显示：2.4寸彩色显示屏，不低于320*240像素；\n16.电源：交直流双电源（AC85～265V、DC12V-48V宽范围），可自动实现不间断切换，具备过压、过流保护；\n17.▲支持VSI功能，可实时上报VDL链路的时隙信息，时隙偏差＜100us；支持AIS动态播发报文频率实时监测； 支持FSR功能，可定时上报AIS的信道情况；支持接收 AIS 报文信号强度检测，可实时显示接收报文的信号强度；（提供经国家认可的检测机构出具的检验报告复印件）\n18.单个基站可以独立工作，也可配置2个基站自动双机热备份，在热备工作模式下，主机发射和接收报文，备机接收报文。主机故障时自动切换为备份发射和接收报文。主机故障修复后可自动恢复为默认热备工作模式；特殊情况下，也可通过监控平台远程切换；\n19.▲支持通过触摸显示屏和web端进行查看基站基本信息，包括基站的软件版本号、基站的名称、基站ID、基站位置（经纬度）、IP地址等信息；可查看基站的运行信息，包括基站的供电类型、主备状态、网络状态、发射和接收频率、频道，发射功率、驻波比、AIS接收数据状态、功放运行温度等；（提供经国家认可的检测机构出具的检验报告复印件）\n20.▲系统内置基站管理软件，具有相关软件著作权证书，提供软件著作权证书复印件。",2,"项",null,{"v":0,"d":"0.00"},{"v":0.13,"d":"13%"}]
[7,"VHF设备",null,"1.频率范围：136-174MHz\n2.信道容量：≥1024\n3.工作循环：100%\n4.信道间隔：25KHz\n5.发射类型：G3E或F3E\n6.工作方式：同频单工、异频单工、双工\n7.调制方式：FM\n8.输出功率：5W - 50W（连续可调）\n9.频率稳定度：≤±0.5ppm\n10.接收灵敏度（模拟）：≤0.18uV（12dB SINAD）\n11.音频响应：+1～-3dB\n12.音频失真：≤3%（典型值）\n13.频道转换时间：<2s\n14.静噪控制：可自动和人工调整 \n15.保护：具有过热、过流、过压保护\n16.工作电压：AC100-240V @50/60Hz  DC13.6±15%\n17.产品尺寸：标准19英吋1U高度机箱\n18.支持通过后置接口中的信号流和引脚控制进行第三方业务开发；\n19.内置IP互联模块，支持最多64个的信道机进行IP互联组网；\n20.支持远程WEB⽹络管理平台监控、诊断和控制信道机状态；",1,"台",null,{"v":0,"d":"0.00"},{"v":0.13,"d":"13%"}]
[8,"AIS设备",null,"1.频率范围：156.025MHz—162.025MHz\n2.默认信道：CH87(161.975 MHz)、CH88(162.025MHz)\n3.信道带宽：25KHz(默认)/12.5kHz\n4.频道间隔：25kHz\n5.数据编码方式：NRZI\n6.数据速率：9600bps\n7.AIS接收通道数量：2\n8.灵敏度：-110dBm，PER≤20%\n9.产品尺寸（宽*高*深）：428*44*340mm\n10.电源：交流22OV供电\n11.支持接收各种船舶AIS信号，支持网络方式远传主站系统。",1,"台",null,{"v":0,"d":"0.00"},{"v":0.13,"d":"13%"}]
["合计",{"$nulls":6},{"$f":"SUM(H2:H9)","v":0},"/"]

{"sheet":"服务部分","index":2,"n_rows":7,"n_cols":9,"rows_kept":7,"merged":[[1,0,4,0],[1,1,5,1],[6,0,6,6]]}
["序号","服务名称","服务内容","报价说明","数量","单位","含税单价（元）","含税总价(元)","税率"]
[1,"青洲五七海上风电项目通信保障项目","机房租赁服务","租赁期：12个月",1,"项",null,{"$f":"G2*E2","v":{"v":0,"d":"0.00"}},{"v":0.06,"d":"6%"}]
[null,null,"专线电路服务","5条20M专线，1条10Mb带宽的专线电路，连接到VTS服务器。",6,"条",null,{"$f":"G3*E3","v":{"v":0,"d":"0.00"}},{"v":0.06,"d":"6%"}]
[null,null,"互联网线路服务","提供远程管理联网（100M)",1,"条",null,{"$f":"G4*E4","v":{"v":0,"d":"0.00"}},{"v":0.06,"d":"6%"}]
[null,null,"安装维护服务","机柜、电源、布线等",1,"项",null,{"$f":"G5*E5","v":{"v":0,"d":"0.00"}},{"v":0.06,"d":"6%"}]
[2,null,"铁塔租赁服务","租用200m以上铁塔",1,"项",null,{"$f":"G6*E6","v":{"v":0,"d":"0.00"}},{"v":0.06,"d":"6%"}]
["合计",{"$nulls":6},{"$f":"SUM(H2:H6)","v":0},"/"]